Cogmind - Beta 11.1 @@@ ROGUE MODE // 2022.07.25 @ 21:48:00 Player: Rainynight Result: Self-destructed Performance ------------- Evolutions (2) 1000 Regions Visited (7) 1400 Robots Destroyed (28) 140 Value Destroyed (573) 573 Prototype IDs (39) 780 Alien Tech Used (0) 0 Bonus (300) 300 TOTAL SCORE: 4193 Bonus ------- Aligned with FarCom 300 Cogmind --------- Core Integrity 399/550 Matter 300/300 Energy 100/100 System Corruption 0% Temperature Cool (18) Movement Walking (120) Location -8/Materials Parts ------- > --- POWER (1) -------- (None) > --- PROPULSION (2) --- Aluminum Leg Carbon-fiber Leg > --- UTILITY (6) ------ Small Storage Unit Structural Scanner Signal Interpreter Improved Terrain Scanner Terrain Scan Processor Seismic Detector > --- WEAPON (2) ------- Scythe Scythe > --- INVENTORY (8) ---- Improved Hover Unit Large Matter Pod (150) Improved Sensor Array Cloak of Protection System Shield System Shield Improved Datajack Scythe Peak State ------------ > --- POWER ------------ Light Nuclear Core > --- PROPULSION ------- Aluminum Leg Carbon-fiber Leg > --- UTILITY ---------- Small Storage Unit Structural Scanner Signal Interpreter Improved Terrain Scanner Terrain Scan Processor Seismic Detector > --- WEAPON ----------- Scythe Scythe > --- INVENTORY -------- Aluminum Leg Large Matter Pod Cloak of Protection Heavy Assault Rifle Rocket Launcher Improved Datajack Hammer Axe [Rating: 24] Favorites ----------- Power Light Nuclear Core Engine Ion Engine Power Core Light Nuclear Core Propulsion Aluminum Leg Treads Light Treads Leg Aluminum Leg Wheel Compact Wheel Flight Unit Flight Unit Utility Small Storage Unit Device Structural Scanner Storage Small Storage Unit Processor Signal Interpreter Weapon Heavy Assault Rifle Ballistic Gun Heavy Assault Rifle Ballistic Cannon Light Cannon Impact Weapon Hammer Slashing Weapon Scythe Special Melee Weapon Datajack Build | -11 -10 -10 -9 -9 -9 -8 -8 ------- Run | Scr Mat Min Mat Min Exi Min Mat Slots Evolved 4 | . . . 2 . . . 2 Power . | . . . . . . . . Propulsion . | . . . . . . . . Utility 4 | . . . 2 . . . 2 Weapon . | . . . . . . . . Parts Attached 39 | . 5 1 10 4 4 5 10 Power 5 | . 1 . 1 1 . 1 1 Engine 3 | . 1 . 1 . . . 1 Core 2 | . . . . 1 . 1 . Reactor . | . . . . . . . . Propulsion 9 | . 2 1 3 . . 2 1 Treads 1 | . . . 1 . . . . Leg 4 | . . . 1 . . 2 1 Wheel 1 | . . . 1 . . . . Hover . | . . . . . . . . Flight 3 | . 2 1 . . . . . Utility 11 | . 1 . 3 1 2 1 3 Device 6 | . 1 . 2 1 . 1 1 Storage 3 | . . . . . 2 . 1 Processor 2 | . . . 1 . . . 1 Hackware . | . . . . . . . . Protection . | . . . . . . . . Artifact . | . . . . . . . . Weapon 14 | . 1 . 3 2 2 1 5 Energy Gun . | . . . . . . . . Energy Cannon . | . . . . . . . . Ballistic Gun 4 | . . . 1 1 . . 2 Ballistic Cannon 4 | . . . 1 . 1 1 1 Launcher . | . . . . . . . . Special Weapon . | . . . . . . . . Impact Weapon 1 | . 1 . . . . . . Slashing Weapon 2 | . . . . . . . 2 Piercing Weapon . | . . . . . . . . Special Melee Weapon 3 | . . . 1 1 1 . . Unidentified Prototypes 1 | . . . . 1 . . . Parts Lost 4 | . . 1 1 . . 1 1 Power 1 | . . . . . . . 1 Propulsion 2 | . . 1 1 . . . . Utility 1 | . . . . . . 1 . Weapon . | . . . . . . . . Highest Loss Streak 1 | . . 1 1 . . 1 1 To Critical Strikes . | . . . . . . . . Average Slot Usage (%) 93 | . 97 71 75 99 100 95 93 Engine 3 | . 14 . 3 . . . 3 Core 6 | . . . . 10 11 11 5 Treads 4 | . . . 3 11 11 7 . Leg 10 | . 26 . 6 . . 6 18 Wheel 4 | . . . 2 11 11 7 . Flight 1 | . . 28 1 . . . . Device 19 | . 13 14 14 22 22 18 23 Storage 10 | . 14 14 11 11 11 11 9 Processor 10 | . . . 11 11 11 11 14 Ballistic Gun 10 | . 27 . 9 9 11 11 4 Ballistic Cannon 5 | . . . 9 11 4 10 1 Slashing Weapon 3 | . . . . . . . 12 Special Melee Weapon 1 | . . . . 1 6 . . Naked Turns . | . . . . . . . . Heaviest Build 21 | 13 14 8 20 20 18 18 21 Greatest Support 25 | 20 20 8 20 16 16 20 25 Greatest Overweight (x) 3 | . 3 . 3 1 1 1 1 Average Overweight (x) . | . . . . . . . . Largest Inventory Capacity 20 | . 8 8 8 8 20 8 8 Average Capacity 8 | . 8 8 8 8 8 8 8 Most Carried 9 | . 8 5 8 8 9 8 8 Average Carried 7 | . 7 4 7 8 7 8 7 Final Capacity 8 | 8 8 8 8 8 8 8 8 Final Carried 8 | 6 5 5 8 8 8 8 8 Class Distribution -------------------- 39% | Mutant 26% | Skirmisher 17% | Scavenger-Assassin 10% | Assassin 6% | Scavenger-Mutant Dominant Class ---------------- Mutant | -10/Materials Mutant | -10/Mines Mutant | -9/Materials Skirmisher | -9/Mines Assassin | -9/Exiles Skirmisher | -8/Mines Scavenger-Assassin | -8/Materials Resources | -11 -10 -10 -9 -9 -9 -8 -8 ----------- Run | Scr Mat Min Mat Min Exi Min Mat Matter Collected 1004 | 200 74 10 156 175 20 187 182 Remotely . | . . . . . . . . Salvage Created 884 | . 104 . 177 116 . 243 244 Parts 47 | . 9 . 10 7 . 10 11 Haulers Intercepted 3 | . . . 1 . . . 2 Recyclers Shooed 1 | . . . . . . . 1 Parts Field Recycled . | . . . . . . . . Retrieved Matter . | . . . . . . . . Parts Self-Destructed . | . . . . . . . . Prevented . | . . . . . . . . Kills | -11 -10 -10 -9 -9 -9 -8 -8 ------- Run | Scr Mat Min Mat Min Exi Min Mat Combat Hostiles Destroyed 15 | . 5 . 2 3 . 3 2 Guns 11 | . 5 . 2 . . 2 2 Cannons 4 | . . . . 3 . 1 . Classes Destroyed 9 | . 2 . 3 . . 4 . Worker 4 | . . . . . . 4 . Builder 2 | . . . . . . 2 . Tunneler 2 | . . . . . . 2 . Hauler 3 | . . . 1 . . . 2 Recycler 2 | . . . 1 . . . 1 Swarmer 3 | . 3 . . . . . . Grunt 10 | . 2 . 1 3 . 2 2 Duelist 1 | . . . . . . 1 . Sentry 1 | . . . 1 . . . . Best Kill Streak 5 | . 3 . 1 3 . 5 2 Combat Bots Only 3 | . 3 . 1 3 . 3 2 Max Kills in Single Turn 2 | . 1 . 1 1 . 2 1 Gunslinging . | . . . . . . . . Exploded . | . . . . . . . . Melee . | . . . . . . . . Uniques/NPCs Destroyed . | . . . . . . . . Combat | -11 -10 -10 -9 -9 -9 -8 -8 -------- Run | Scr Mat Min Mat Min Exi Min Mat Damage Taken 1059 | . 131 99 200 39 . 220 370 Core 362 | . . 49 68 28 . 66 151 Absorbed by Shields . | . . . . . . . . Core Remaining (%) 79 | 100 . 80 . . . 59 . Volleys Fired 75 | . 23 . 16 3 . 24 9 Largest 2 | . 2 . 2 2 . 2 2 Hottest 69 | . 40 . 58 58 . 58 69 Shots Fired 142 | . 46 . 32 6 . 40 18 Gun 104 | . 46 . 16 3 . 24 15 Cannon 38 | . . . 16 3 . 16 3 Launcher . | . . . . . . . . Special . | . . . . . . . . Kinetic 142 | . 46 . 32 6 . 40 18 Thermal . | . . . . . . . . Explosive . | . . . . . . . . Electromagnetic . | . . . . . . . . Robot Hit Streak 9 | . 9 . 4 5 . 6 5 Robot Miss Streak 5 | . 2 . 2 1 . 1 5 Penetration Max . | . . . . . . . . Secondary Targets 1 | . . . . . . . 1 Max Gunslinging Chain 1 | . . . . . . . 1 Shots Hit Robots 136 | . 31 . 19 26 12 27 21 Core Hits 42 | . 11 . 6 4 . 14 7 Critical Kills . | . . . . . . . . Critical Parts Destroyed . | . . . . . . . . Critical Strikes 2 | . . . . . . 1 1 Blast 1 | . . . . . . 1 . Sever 1 | . . . . . . . 1 Melee Attacks 48 | . . . 2 21 12 . 13 Impact . | . . . . . . . . Slashing 13 | . . . . . . . 13 Piercing . | . . . . . . . . Sneak Attacks 14 | . . . . . 12 . 2 Combat Hostiles . | . . . . . . . . Follow-up Attacks 1 | . . . . . . . 1 Damage Inflicted 1826 | . 355 . 325 85 . 493 568 Guns 997 | . 355 . 134 29 . 245 234 Cannons 527 | . . . 191 56 . 230 50 Explosions . | . . . . . . . . Melee 284 | . . . . . . . 284 Ramming 18 | . . . . . . 18 . Kinetic 1524 | . 355 . 325 85 . 475 284 Thermal . | . . . . . . . . Explosive . | . . . . . . . . Electromagnetic . | . . . . . . . . Impact . | . . . . . . . . Slashing 284 | . . . . . . . 284 Piercing . | . . . . . . . . Highest Corruption 1 | . 1 1 . . . . . Average Corruption 1 | . 1 1 . . . . . Corruption Purged . | . . . . . . . . Corruption Blocked . | . . . . . . . . Effects 3 | . 1 2 . . . . . Message Errors 1 | . 1 . . . . . . Energy Discharges 2 | . . 2 . . . . . Overload Shots . | . . . . . . . . Overflow Damage 32 | . . . . . . 2 30 Projectiles 2 | . . . . . . 2 . Explosions . | . . . . . . . . Melee 30 | . . . . . . . 30 Knockbacks 3 | . . . 2 . . 1 . Impact . | . . . . . . . . Kinetic 3 | . . . 2 . . 1 . Secondary . | . . . . . . . . Self-Inflicted Damage . | . . . . . . . . Shots . | . . . . . . . . Rammed 1 | . . . . . . 1 . Targets Rammed 4 | . . . . . . 4 . Kicked 3 | . . . . . . 3 . Crushed . | . . . . . . . . Highest Temperature 35 | . 6 3 . . . 35 19 Average Temperature 10 | . 6 2 . . . 15 9 Received Heat Transfer 459 | . 42 81 90 21 . 54 171 Siege Activations . | . . . . . . . . Robots Corrupted . | . . . . . . . . Combat Hostiles . | . . . . . . . . Parts Fried . | . . . . . . . . Impact Corruptions . | . . . . . . . . Robots Melted . | . . . . . . . . Combat Hostiles . | . . . . . . . . Parts Melted . | . . . . . . . . Heat Transferred . | . . . . . . . . Parts Sabotaged . | . . . . . . . . Parts Stolen . | . . . . . . . . Parts Stripped . | . . . . . . . . Power Chain Reactions . | . . . . . . . . Missiles Intercepted . | . . . . . . . . Alert | -11 -10 -10 -9 -9 -9 -8 -8 ------- Run | Scr Mat Min Mat Min Exi Min Mat Peak Influence 184 | . 184 106 95 112 . 95 86 Initial 71 | . . 71 40 42 . . . Average 54 | . 71 83 61 111 . 16 40 Maximum Alert Level . | . . . . . . . . Low Security (%) 100 | . 100 100 100 100 . 100 100 Level 1 . | . . . . . . . . Level 2 . | . . . . . . . . Level 3 . | . . . . . . . . Level 4 . | . . . . . . . . Level 5 . | . . . . . . . . High Security . | . . . . . . . . Max Security . | . . . . . . . . Squads Dispatched 5 | . 2 . 1 . . . 2 Investigation 2 | . 1 . . . . . 1 Extermination . | . . . . . . . . Reinforcement 3 | . 1 . 1 . . . 1 Assault . | . . . . . . . . Garrison . | . . . . . . . . Intercept . | . . . . . . . . Searches Triggered . | . . . . . . . . Construction Impeded . | . . . . . . . . Haulers Reinforced . | . . . . . . . . Active Scanning Responses . | . . . . . . . . Cargo Convoy Interrupts . | . . . . . . . . Stealth | -11 -10 -10 -9 -9 -9 -8 -8 --------- Run | Scr Mat Min Mat Min Exi Min Mat Distress Signals 1 | . . . 1 . . . . Communications Jammed . | . . . . . . . . Distress Signals . | . . . . . . . . Times Spotted 45 | . 6 14 5 2 . 3 15 Peak Tracking Total 6 | . 4 6 2 . . 3 6 Tactical Retreats 4 | . . 3 . . . . 1 Traps | -11 -10 -10 -9 -9 -9 -8 -8 ------- Run | Scr Mat Min Mat Min Exi Min Mat Traps Triggered . | . . . . . . . . Indirectly . | . . . . . . . . Trap Hack Attempts . | . . . . . . . . Triggered . | . . . . . . . . Disarmed . | . . . . . . . . Reprogrammed . | . . . . . . . . Reused . | . . . . . . . . Traps Extracted . | . . . . . . . . Installed . | . . . . . . . . Triggered . | . . . . . . . . Exploded 2 | . . . . . . . 2 Machines | -11 -10 -10 -9 -9 -9 -8 -8 ---------- Run | Scr Mat Min Mat Min Exi Min Mat Machines Disabled . | . . . . . . . . Max in Single Turn . | . . . . . . . . Garrison Access 1 | . . . . . . . 1 Machines Sabotaged . | . . . . . . . . Garrisons Compromised . | . . . . . . . . Overloaded Fab Kills . | . . . . . . . . Hacking | -11 -10 -10 -9 -9 -9 -8 -8 --------- Run | Scr Mat Min Mat Min Exi Min Mat Machines Accessed 10 | . 3 . 2 . 2 . 3 Terminals 6 | . 2 . 2 . . . 2 Fabricators . | . . . . . . . . Repair Stations . | . . . . . . . . Recycling Units 1 | . 1 . . . . . . Scanalyzers . | . . . . . . . . Garrison Access 1 | . . . . . . . 1 Total Hacks 26 | . 8 . 2 . 10 . 6 Successful 19 | . 5 . 2 . 10 . 2 Failed 7 | . 3 . . . . . 4 Catastrophic . | . . . . . . . . Database Lockouts . | . . . . . . . . Manual 9 | . 4 . 2 . 1 . 2 Terminals 13 | . 6 . 2 . . . 5 Fabricators . | . . . . . . . . Repair Stations . | . . . . . . . . Recycling Units 2 | . 2 . . . . . . Scanalyzers . | . . . . . . . . Garrison Access 1 | . . . . . . . 1 Terminal Hacks 14 | . 3 . . . 10 . 1 Record 9 | . . . . . 9 . . Robot Analysis 4 | . 3 . . . . . 1 EX-Prototype ID Bank 1 | . . . . . 1 . . Fabricator Hacks . | . . . . . . . . Repair Station Hacks . | . . . . . . . . Recycling Unit Hacks . | . . . . . . . . Scanalyzer . | . . . . . . . . Garrison Access Hacks 1 | . . . . . . . 1 Seal Access 1 | . . . . . . . 1 Unauthorized Hacks 4 | . 2 . 2 . . . . Terminals 4 | . 2 . 2 . . . . Track 4 | . 2 . 2 . . . . Fabricators . | . . . . . . . . Repair Stations . | . . . . . . . . Recycling Units . | . . . . . . . . Scanalyzers . | . . . . . . . . Garrison Access . | . . . . . . . . Data Cores Recovered . | . . . . . . . . Used . | . . . . . . . . Hacking Detections 5 | . 3 . 1 . . . 1 Full Trace Events 3 | . 2 . . . . . 1 Feedback Events 1 | . 1 . . . . . . Corruption 1 | . 1 . . . . . . Feedback Blocked . | . . . . . . . . Robot Schematics Acquired . | . . . . . . . . Robots Built . | . . . . . . . . Authchips . | . . . . . . . . Time . | . . . . . . . . Total Robot Build Rating . | . . . . . . . . Part Schematics Acquired . | . . . . . . . . Parts Built . | . . . . . . . . Authchips . | . . . . . . . . Time . | . . . . . . . . Total Part Build Rating . | . . . . . . . . Parts Repaired . | . . . . . . . . Time . | . . . . . . . . Parts Recycled . | . . . . . . . . Recycled Matter . | . . . . . . . . Retrieved Matter . | . . . . . . . . Retrieved Components . | . . . . . . . . Parts Scanalyzed . | . . . . . . . . Part Schematics Acquired . | . . . . . . . . Parts Damaged . | . . . . . . . . Bothacking | -11 -10 -10 -9 -9 -9 -8 -8 ------------ Run | Scr Mat Min Mat Min Exi Min Mat Used RIF Installer . | . . . . . . . . Robots Hacked 5 | . . . . . 5 . . Non-combat 3 | . . . . . 3 . . Combat 2 | . . . . . 2 . . Robot Hacks Applied 9 | . . . . . 9 . . parse_system 9 | . . . . . 9 . . Relay Couplers Released . | . . . . . . . . Fabnet Peak Effective % . | . . . . . . . . Robots Rewired . | . . . . . . . . Allies Hacked . | . . . . . . . . Hacks Repelled . | . . . . . . . . Allies | -11 -10 -10 -9 -9 -9 -8 -8 -------- Run | Scr Mat Min Mat Min Exi Min Mat Total Allies . | . . . . . . . . Largest Group . | . . . . . . . . Highest-Rated Group . | . . . . . . . . Highest-Rated Ally . | . . . . . . . . Total Orders . | . . . . . . . . Ally Attacks . | . . . . . . . . Total Damage . | . . . . . . . . Kills . | . . . . . . . . Allies Corrupted . | . . . . . . . . Allies Melted . | . . . . . . . . Intel | -11 -10 -10 -9 -9 -9 -8 -8 ------- Run | Scr Mat Min Mat Min Exi Min Mat Robot Analysis Total 4 | . 3 . . . . . 1 Derelict Logs Recovered 1 | . . 1 . . . . . Drone Launches . | . . . . . . . . Drone Recoveries . | . . . . . . . . Exploration | -11 -10 -10 -9 -9 -9 -8 -8 ------------- Run | Scr Mat Min Mat Min Exi Min Mat Turns Passed 2489 | . 335 84 276 298 378 475 643 Spaces Moved 1762 | 1 152 189 159 218 321 331 391 Core 11 | . 1 . 10 . . . . Treads 18 | . . . 11 . . 7 . Legs 669 | 1 140 . 47 . . 90 391 Wheels 812 | . . . 39 218 321 234 . Hover . | . . . . . . . . Flight 252 | . 11 189 52 . . . . Fastest Speed 37 | 120 37 37 37 100 100 115 120 Average Speed 109 | 120 116 37 121 114 105 117 129 Slowest Speed 200 | 120 200 37 200 115 115 190 190 Overloaded Moves . | . . . . . . . . Propulsion Burnouts . | . . . . . . . . Robots Hopped 10 | . 1 7 1 . 1 . . Cave-ins Triggered . | . . . . . . . . Exploration Rate (%) 44 | 2 45 48 25 56 66 68 48 Regions Visited 7 Branch Regions 4 Pre-discovered Areas . | . . . . . . . . Known Exits Taken 5 | . . 1 1 1 1 1 . Unknown Exits Taken 2 | 1 1 . . . . . . Scrap Searched 2 | . . 1 . 1 . . . Spaces Dug 4 | . . . . . . . 4 Terrain Destroyed 4 | . . . . . . . 4 Melee 4 | . . . . . . . 4 Projectile . | . . . . . . . . AOE . | . . . . . . . . Terrain Rammed . | . . . . . . . . Walls Destroyed . | . . . . . . . . Machines Disabled . | . . . . . . . . Actions | -11 -10 -10 -9 -9 -9 -8 -8 --------- Run | Scr Mat Min Mat Min Exi Min Mat Total 2149 | . 270 195 207 249 357 375 496 Wait 166 | . 77 12 16 . . 8 53 Move 1736 | . 149 175 156 217 318 330 391 Hop 9 | . 1 6 1 . 1 . . Pick Up 25 | . 4 1 1 . 11 1 7 Fast Attach 26 | . 3 . 8 4 . 5 6 Attach 5 | . 1 1 2 . . . 1 Detach 6 | . 1 . 4 . . . 1 Swap 8 | . 1 . . . 4 . 3 Drop 43 | . 10 . 1 4 11 3 14 Fire 75 | . 23 . 16 3 . 24 9 Melee 46 | . . . 2 21 12 . 11 Ram . | . . . . . . . . Kick 3 | . . . . . . 3 . Crush 1 | . . . . . . 1 . Escape Stasis . | . . . . . . . . Rewire . | . . . . . . . . Trap . | . . . . . . . . Miscellaneous . | . . . . . . . . Route ------- -11/Scrapyard -10/Materials -10/Mines (discovered 2 exits: *Mat x2) -9/Materials -9/Mines (discovered 2 exits: *Exi / *Zio) -9/Exiles -8/Mines -8/Materials History --------- Turn | Location | Event 1 | -11/Scrapyard | Discovered new exit (range 0) 1 | -11/Scrapyard | Entered Materials 316 | -10/Materials | Build established: Mutant 331 | -10/Materials | Discovered new exit (range 8) 336 | -10/Materials | Entered Mines 337 | -10/Mines | Assembled infested the area 342 | -10/Mines | Assisted by a Guerilla fighting off Assembled 390 | -10/Mines | Identified exit to Materials 417 | -10/Mines | Discovered exit to Materials (range 9) 420 | -10/Mines | Entered Materials 420 | -9/Materials | Evolved 2 slots: Utility x2 682 | -9/Materials | Discovered new exit (range 12) 695 | -9/Materials | Identified exit to Mines 696 | -9/Materials | Entered Mines 755 | -9/Mines | Found a damaged Exp. Sensor Array with a note attached 757 | -9/Mines | Found Prototype Device 757 | -9/Mines | Identified Exp. Sensor Array 898 | -9/Mines | A Derelict revealed a hidden shortcut to a safe place 909 | -9/Mines | Identified exit to Zion 989 | -9/Mines | Deemed a non-threat by the Exiles lab entrance 989 | -9/Mines | Discovered new exit (range 5) 992 | -9/Mines | Identified exit to Exiles 994 | -9/Mines | Entered Exiles 1031 | -9/Exiles | Met 8R-AWN 1056 | -9/Exiles | Met EX-HEX 1102 | -9/Exiles | Met EX-BIN 1117 | -9/Exiles | Aligned with FarCom system 1118 | -9/Exiles | Given EX-Vault access code 1152 | -9/Exiles | Opened EX-Vault 1159 | -9/Exiles | Found Cloak of Protection 1180 | -9/Exiles | Warned to stay clear of 0b10 Research branches 1195 | -9/Exiles | Exiles lab attacked by MAIN.C 1338 | -9/Exiles | Discovered new exit (range 10) 1370 | -9/Exiles | Identified exit to Mines 1372 | -9/Exiles | Left Exiles lab with Cloak of Protection 1372 | -9/Exiles | Entered Mines 1562 | -8/Mines | Build established: Skirmisher 1827 | -8/Mines | Discovered new exit (range 15) 1844 | -8/Mines | Identified exit to Materials 1847 | -8/Mines | Entered Materials 1847 | -8/Materials | Evolved 2 slots: Utility x2 1963 | -8/Materials | Build established: Mutant 2354 | -8/Materials | Build established: Scavenger-Assassin 2490 | -8/Materials | Self-destructed Last Messages --------------- 02342_ Acquired Scythe. 02382_ Connecting with Garrison Access... >>Seal Access door sealed. 02382_ K-01 Serf cleans the Fusion Modulator. 02385_ Sneak attack on A-02 Transporter. 02395_ A-02 Transporter destroyed. 02398_ K-01 Serf collects debris. 02399_ Acquired 10 matter. 02401_ K-01 Serf collects debris. 02422_ T-07 Excavator is excavating. 02426_ ALERT: Hostiles spotted, dispatching reinforcements to Terminal M005. 02426_ T-07 Excavator is excavating. 02473_ Dropped Rocket Launcher. 02482_ Acquired Imp. Sensor Array. 02484_ Scythe follow-up attack on Y-45 Defender. 02484_ Y-45 Defender Lgt. Armor Plating severed. 02487_ Critical hit (Burn: +37). 02490_ Lgt. Ion Engine destroyed. Map ----- +----------------------------------------------------+ | # ???#? ?? ????? ????????????? | | # ???#? ????? ????????????????? | | # ???#??"""?? ?## ????????????? | | # ??????"?????????????????#??? | | # ???##????"? ?????? ?????????? | | # "" #???"??? ?#??#?????#?????? | | # "T????? ????#??#?#?##?#??#?? | | # "" ?# ####????#??????? | | # #######+######?###?#??#??# | | ###/#### ##??#??##????? | | + ###???#?#????? | | # """ """ ##??##??#????? | | !!! # """ """ ############## | | !! ## """ """ ############## | | !! ## """ """ ### ## | | ## / / ## | | ## ### ## | | #######+###### ## | | !# ###### # ## | | # # ##? ? # ## | | !! # ??????## / ## | | ! / #####??#??### Y# ] ## | | ############# g####+####### | | ############ ### ####### | | gg ##???? | | Y| @ ###??? | | ###??######## #### ##???# | | ###??######### ##### ##?#?? | | # ##??#???#??### ###?#+##???? | | ? *# ?#????#?????## # ? ? # | | ??? # ????????????## # ?? ????? | | ?????????????#???#?## # ?"???"??? | | ???????????????????## # ??""?""??? | | ?????????????#?????## # ??????"??# | | ??????????????#????## + ?????????? | | ???????????????????## ???????????? | | ?????????????##????## #? ????#??? | | ??????????????#????## ??????S?Y??? | | ???????????????????## ???????????? | | ?????????????????? ?? ???????????? | | ????????????????????? ?#?????????? | | ??????????????????????????????????? | | ??????????????????????????????????? | | ??????????????????????H???????????? | | ??????????????????????????????????? | | ??????????????????????????????????? | | ??????????????????????????????????? | | ??????????????????????????????????? | | ??????????????????????????????????? | | ??????????????????????????????????? | +----------------------------------------------------+ Best States ------------- Heat Dissipation 38 Energy Generation 14 Energy Capacity 265 Matter Stores 300 Matter Capacity 300 Sight Range 16 Robot Scan Range 20 Terrain Scan Range 16 Terrain Scan Density 85 Evasion (%) 62 Recoil Reduction 1 Item Schematics ----------------- None Robot Schematics ------------------ None Fabricated ------------ Nothing Alien Tech Used ----------------- None Achievements -------------- None Challenges ------------ None Game ------ Seed ScatterCloakRipper Manual? 0 Play Time 00:22:24 Cumulative 141.4 hours Start 2022.07.25 @ 20:52:34 End 2022.07.25 @ 21:48:00 Sessions 3 Manual Loads 0 Difficulty Rogue Special Mode None Game No. 187 Rogue 183 Adventurer 0 Explorer 4 Win Type - Total 5 Types 5/0/0/0/0/0/0/0/0 Lore% 63 Gallery% 66 Achievement% 55 Wizard Run 0 Options --------- ASCII 1 Keyboard 1 Movement Numpad Keybinds 0 Fullscreen 1 Font 18/X11 Map View 76x50 Tactical HUD 1 Map Filters NONE Filters NONE Steam X RUN: 26146a12-30be-4f88-aedf-aa704a9cae61